bitfinex-derivatives/quotes_BTCF0:USTF0_20250812
["timestamp","ask_amount","ask_price","bid_price","bid_amount"]
[1754989656105,2.72572677,118800.0,118790.0,0.005]
[1754989656708,2.82830577,118800.0,118790.0,0.005]
[1754989658605,2.72717961,118800.0,118790.0,0.005]
[1754989658814,2.72717961,118800.0,118790.0,0.00504988]
[1754989659006,0.084191,118780.0,118770.0,0.02427]
[1754989659205,0.084191,118780.0,118760.0,0.04964]
[1754989659206,0.0841981,118770.0,118760.0,0.04964]
[1754989659406,0.93951431,118770.0,118760.0,0.12294]
[1754989660404,1.03584357,118770.0,118760.0,0.12294]
[1754989660608,1.03684357,118770.0,118760.0,0.12794]
[1754989661207,1.03684357,118770.0,118760.0,0.005]
[1754989661208,1.19514192,118770.0,118760.0,0.005]
[1754989661418,1.19514192,118770.0,118760.0,0.02927]
[1754989661912,1.19414192,118770.0,118760.0,0.003]
[1754989663709,0.78967571,118770.0,118760.0,0.003]
[1754989663911,1.19414192,118770.0,118760.0,0.003]
[1754989664810,0.79006602,118770.0,118760.0,0.003]
[1754989665114,1.19453223,118770.0,118760.0,0.003]
[1754989665906,1.59899844,118770.0,118760.0,0.003]
[1754989666110,0.2239123,118750.0,118740.0,0.02427]
[1754989666309,1.87195747,118750.0,118740.0,0.02427]
[1754989666816,1.88055169,118750.0,118740.0,0.09998]
[1754989667017,1.88055169,118750.0,118740.0,0.05034]
[1754989667215,1.88055169,118750.0,118740.0,0.09998]
[1754989667420,1.88055169,118750.0,118740.0,0.03384]
[1754989667714,1.88155169,118750.0,118740.0,0.03384]
[1754989668520,1.88155169,118750.0,118740.0,0.12294]
[1754989668818,1.94898073,118750.0,118740.0,0.12294]
[1754989669314,0.0842188,118740.0,118730.0,0.02384]
[1754989669514,0.0842188,118740.0,118730.0,0.04802]
[1754989669515,0.94005501,118740.0,118730.0,0.04802]
[1754989669717,0.94005501,118740.0,118730.0,0.2016059]
[1754989670309,0.63191806,118740.0,118730.0,0.1545059]
[1754989670513,1.03638427,118740.0,118730.0,0.2016059]
[1754989670915,1.03838427,118740.0,118730.0,0.11838]
[1754989671117,1.03838427,118740.0,118730.0,0.11938]
[1754989671619,1.03838427,118740.0,118730.0,0.2036061]
[1754989671923,0.63391806,118740.0,118730.0,0.2036061]
[1754989672120,1.03838427,118740.0,118730.0,0.2036061]
[1754989674521,1.03838427,118740.0,118730.0,0.11938]
[1754989675823,1.03838427,118740.0,118730.0,0.02584]
[1754989678522,1.17808427,118740.0,118730.0,0.0021]
[1754989679323,1.17808427,118740.0,118730.0,0.02584]
[1754989679625,1.17808427,118740.0,118730.0,0.0021]
[1754989680218,0.77361806,118740.0,118730.0,0.0021]
[1754989680420,1.17808427,118740.0,118730.0,0.0021]
[1754989681124,1.95188427,118740.0,118730.0,0.02584]
[1754989682122,0.75412806,118740.0,118730.0,0.0021]
[1754989682326,1.54741806,118740.0,118730.0,0.11938]
[1754989682528,1.95188427,118740.0,118730.0,0.11938]
[1754989688229,1.95188427,118740.0,118730.0,0.2036059]
[1754989688630,1.95188427,118740.0,118730.0,0.11938]
[1754989689023,1.54741806,118740.0,118730.0,0.2036058]
[1754989689323,1.55240334,118740.0,118730.0,0.1350158]
[1754989689523,0.35980796,118740.0,118730.0,0.96887201]
[1754989689726,0.39332796,118740.0,118730.0,0.2036058]
[1754989689926,0.39332796,118740.0,118730.0,0.96887201]
[1754989690730,0.39332796,118740.0,118730.0,0.5644058]
[1754989691930,0.81728417,118740.0,118730.0,0.3629]
[1754989692131,1.17808417,118740.0,118730.0,0.0021]
[1754989692437,1.2029715,118740.0,118730.0,1e-08]
[1754989693832,0.0842328,118720.0,118710.0,0.07084]
[1754989694032,1.66025901,118720.0,118710.0,0.11728]
[1754989694240,1.71326901,118720.0,118710.0,0.07018]
[1754989694536,1.71326901,118720.0,118710.0,0.2015199]
[1754989695338,1.80959827,118720.0,118710.0,0.2025199]
[1754989695637,1.80959827,118720.0,118710.0,0.2045199]
[1754989695840,1.80959827,118720.0,118710.0,0.12028]
[1754989696236,1.80959827,118720.0,118710.0,0.0872399]
[1754989696539,1.80959827,118720.0,118710.0,0.1109799]
[1754989696738,1.80959827,118720.0,118710.0,0.1207699]
[1754989697041,1.80947827,118720.0,118710.0,0.1830299]
[1754989697332,1.40501206,118720.0,118710.0,0.09879]
[1754989697538,1.80947827,118720.0,118710.0,0.09879]
[1754989698733,1.94917827,118720.0,118710.0,0.09879]
[1754989699246,1.54471206,118720.0,118710.0,0.09879]
[1754989699445,1.94917827,118720.0,118710.0,0.09879]
[1754989700345,1.58837827,118720.0,118710.0,0.12194]
[1754989701046,1.94917827,118720.0,118710.0,0.12194]
[1754989701446,1.58837827,118720.0,118710.0,0.12194]
[1754989701845,1.94917827,118720.0,118710.0,0.12194]
[1754989702147,1.58837827,118720.0,118710.0,0.12194]
[1754989702444,1.94917827,118720.0,118710.0,0.12194]
[1754989703237,1.94917827,118720.0,118710.0,0.2061799]
[1754989706046,1.94917827,118720.0,118710.0,0.12194]
[1754989706747,1.54471206,118720.0,118710.0,0.12194]
[1754989707046,1.94917827,118720.0,118710.0,0.12194]
[1754989707247,1.54471206,118720.0,118710.0,0.12194]
[1754989707446,1.94917827,118720.0,118710.0,0.12194]
[1754989708349,1.94917827,118720.0,118710.0,0.20618]
[1754989709242,1.54471206,118720.0,118710.0,0.20618]
[1754989709442,1.94917827,118720.0,118710.0,0.12194]
[1754989709634,3.44917827,118720.0,118710.0,0.12194]
[1754989710449,3.04471206,118720.0,118710.0,0.12194]
[1754989710840,3.44917827,118720.0,118710.0,0.12194]
[1754989713043,3.04471206,118720.0,118710.0,0.2061799]
[1754989713250,3.44917827,118720.0,118710.0,0.2061799]
[1754989713439,3.44917827,118720.0,118710.0,0.12194]
[1754989714347,3.44917827,118720.0,118710.0,0.2061799]
[1754989714544,3.44917827,118720.0,118710.0,0.12194]
[1754989714945,3.04471206,118720.0,118710.0,0.12194]
[1754989715150,3.44917827,118720.0,118710.0,0.08923]
[1754989715946,3.44917827,118720.0,118710.0,0.05169]
[1754989717454,3.04471206,118720.0,118710.0,0.05169]
[1754989717655,3.44917827,118720.0,118710.0,0.05169]
[1754989720054,3.04471206,118720.0,118710.0,0.1359299]
[1754989720447,3.44917827,118720.0,118710.0,0.1359299]
[1754989721053,3.44917827,118720.0,118710.0,0.1497399]
[1754989722554,3.44917827,118720.0,118710.0,0.1359299]
[1754989723454,3.04471206,118720.0,118710.0,0.1359299]
[1754989723658,3.44917827,118720.0,118710.0,0.1359299]
[1754989724256,1.94917827,118720.0,118710.0,0.1359299]
[1754989724755,3.44917827,118720.0,118710.0,0.1359299]
[1754989727359,3.04471206,118720.0,118710.0,0.1359299]
[1754989727759,3.44917827,118720.0,118710.0,0.1359299]
[1754989728060,3.04471206,118720.0,118710.0,0.1359299]
[1754989728362,3.44917827,118720.0,118710.0,0.1359299]
[1754989729160,3.04471206,118720.0,118710.0,0.1359299]
[1754989729363,3.44917827,118720.0,118710.0,0.1359299]
[1754989730559,3.04471206,118720.0,118710.0,0.1359299]
[1754989730760,3.44917827,118720.0,118710.0,0.1359299]
[1754989731460,3.04471206,118720.0,118710.0,0.1359299]
[1754989731761,3.44917827,118720.0,118710.0,0.1359299]
[1754989733162,3.04471206,118720.0,118710.0,0.1359299]
[1754989733360,3.44917827,118720.0,118710.0,0.1359299]
[1754989735065,3.04471206,118720.0,118710.0,0.1359299]
[1754989735360,3.44917827,118720.0,118710.0,0.1359299]
[1754989735760,0.81529827,118720.0,118710.0,0.1359299]
[1754989735959,1.58613827,118720.0,118710.0,0.1359299]
[1754989736863,1.58613827,118720.0,118710.0,0.1824499]
[1754989740264,1.18167206,118720.0,118710.0,0.1824499]
[1754989740565,1.58569827,118720.0,118710.0,0.2045499]
[1754989740757,1.78852156,118720.0,118710.0,0.50819465]
[1754989741264,1.78852156,118720.0,118710.0,0.2045499]
[1754989741464,1.78852156,118720.0,118710.0,0.50819465]
[1754989742067,1.18123206,118720.0,118710.0,0.50819465]
[1754989742258,0.16740926,118720.0,118710.0,0.46167465]
[1754989742457,0.13388926,118720.0,118710.0,1.1726394]
[1754989743158,0.11187926,118720.0,118710.0,1.1726394]
[1754989743358,0.09632926,118720.0,118710.0,1.1726394]
[1754989744867,0.09632926,118720.0,118710.0,0.97005796]
[1754989745760,0.71451734,118750.0,118730.0,0.3368981]
[1754989745961,3.02408734,118750.0,118740.0,0.60791666]
[1754989746167,3.04357734,118750.0,118740.0,0.2032086]
[1754989747171,3.04557734,118750.0,118740.0,0.2032086]
[1754989748462,3.4502854,118750.0,118740.0,0.2032086]
[1754989748663,3.4512854,118750.0,118740.0,0.2032086]
[1754989748870,3.17521434,118750.0,118740.0,0.2032086]
[1754989749069,3.7206224,118750.0,118740.0,0.2042086]
[1754989749870,3.31591434,118750.0,118740.0,0.2042086]
[1754989750171,3.7206224,118750.0,118740.0,0.2042086]
[1754989750866,3.31591434,118750.0,118740.0,0.2042086]
[1754989751170,3.7206224,118750.0,118740.0,0.2042086]
[1754989752059,3.31591434,118750.0,118740.0,0.2042086]
[1754989752264,3.7206224,118750.0,118740.0,0.2042086]
[1754989752459,3.29654434,118750.0,118740.0,0.60891666]
[1754989752665,2.95523434,118750.0,118740.0,0.96971666]
[1754989753267,0.66550434,118750.0,118740.0,0.96971666]
[1754989753769,0.68499434,118750.0,118740.0,0.96971666]
[1754989754358,0.68499434,118750.0,118740.0,0.60891666]
[1754989755975,0.68499434,118750.0,118740.0,0.2042086]
[1754989757974,1.0897024,118750.0,118740.0,0.0852186]
[1754989758170,1.0897024,118750.0,118740.0,0.1094386]
[1754989758875,1.0897024,118750.0,118740.0,0.1193486]
[1754989759069,1.0897024,118750.0,118740.0,0.1837586]
[1754989759669,1.0897024,118750.0,118740.0,0.2053886]
[1754989759870,0.68499434,118750.0,118740.0,0.2053886]
[1754989760171,1.0897024,118750.0,118740.0,0.2053886]
[1754989761075,0.68499434,118750.0,118740.0,0.2053886]
[1754989761875,0.68499434,118750.0,118740.0,0.61009666]
[1754989762381,1.28707884,118750.0,118740.0,0.61009666]
[1754989762671,1.14737884,118750.0,118740.0,0.61009666]
[1754989762863,0.37685884,118750.0,118740.0,0.61009666]
[1754989764280,0.35736884,118750.0,118740.0,0.61009666]
[1754989766473,0.37685884,118750.0,118740.0,0.2053886]
[1754989766982,0.7815669,118750.0,118740.0,0.2053886]
[1754989768578,0.7815669,118750.0,118740.0,0.1094186]
[1754989769180,0.7815669,118750.0,118740.0,0.1493086]
[1754989769383,0.7815669,118750.0,118740.0,0.1831086]
[1754989769575,0.7815669,118750.0,118740.0,0.2047386]
[1754989771480,0.7815669,118750.0,118740.0,0.1804886]
[1754989771680,0.7815669,118750.0,118740.0,0.2047386]
[1754989772375,0.37685884,118750.0,118740.0,0.2047386]
[1754989772577,0.7815669,118750.0,118740.0,0.2047386]
[1754989774980,0.37685884,118750.0,118740.0,0.2047386]
[1754989776981,0.7815669,118750.0,118740.0,0.2047386]
[1754989782281,0.37685884,118750.0,118740.0,0.2047386]
[1754989782482,0.7815669,118750.0,118740.0,0.2047386]
[1754989786579,0.37685884,118750.0,118740.0,0.2047386]
[1754989786780,0.7815669,118750.0,118740.0,0.2047386]
[1754989790689,0.68036525,118750.0,118740.0,0.2047386]
[1754989790989,0.37685884,118750.0,118740.0,0.2047386]
[1754989791191,0.68036525,118750.0,118740.0,0.50824501]
[1754989791379,0.37685884,118750.0,118740.0,0.50824501]
[1754989791583,0.68036525,118750.0,118740.0,0.50824501]
[1754989794095,1.04116525,118750.0,118740.0,0.50824501]
[1754989794587,1.04116525,118750.0,118740.0,0.2047386]
[1754989794794,1.04116525,118750.0,118740.0,0.50824511]
[1754989796495,1.04116525,118750.0,118740.0,0.12052]
[1754989796693,1.04116525,118750.0,118740.0,0.0252]
[1754989796890,1.34467166,118750.0,118740.0,0.001]
[1754989797395,1.34367166,118750.0,118740.0,0.001]
[1754989797594,1.34567166,118750.0,118740.0,0.001]
[1754989798398,0.0842329,118720.0,118710.0,0.02326]
[1754989798589,0.78151572,118720.0,118710.0,0.09636]
[1754989798891,0.94019078,118720.0,118710.0,0.04818]
[1754989799096,0.57939078,118720.0,118710.0,0.04818]
[1754989799298,0.57939078,118720.0,118710.0,0.1472201]
[1754989799597,0.94019078,118720.0,118710.0,0.2030401]
[1754989800201,1.07989078,118720.0,118710.0,0.1188]
[1754989800399,0.0842401,118710.0,118700.0,0.300916]
[1754989800698,0.1745101,118710.0,118700.0,0.348276]
[1754989800898,0.1550201,118710.0,118700.0,0.348276]
[1754989801097,0.07078,118710.0,118700.0,0.77642388]
[1754989801292,0.2455599,118720.0,118710.0,0.0842401]
[1754989801492,0.2836499,118720.0,118710.0,0.53648798]
[1754989801800,0.2836499,118720.0,118710.0,0.60792798]
[1754989802491,0.2836499,118720.0,118710.0,0.2030401]
[1754989802696,0.3031399,118720.0,118710.0,0.60792798]
[1754989802900,0.3031399,118720.0,118710.0,0.2030401]
[1754989804093,0.70802778,118720.0,118710.0,0.2030401]
[1754989807304,0.71002778,118720.0,118710.0,0.2030401]
[1754989809400,0.3051399,118720.0,118710.0,0.2030401]
[1754989810815,0.71002778,118720.0,118710.0,0.1075001]
[1754989811307,0.71002778,118720.0,118710.0,0.1317201]
[1754989811507,0.71002778,118720.0,118710.0,0.1806001]
[1754989812003,0.71002778,118720.0,118710.0,0.0842401]
[1754989812508,0.71002778,118720.0,118710.0,0.1075001]
[1754989813005,0.71002778,118720.0,118710.0,0.1317201]
[1754989813308,1.07082778,118720.0,118710.0,0.1317201]
[1754989813502,1.07082778,118720.0,118710.0,0.1075001]
[1754989813709,1.32354638,118720.0,118700.0,0.309376]
[1754989814007,0.54130778,118710.0,118700.0,0.333596]
[1754989814203,0.57939778,118710.0,118700.0,0.371536]
[1754989815215,0.70803478,118710.0,118700.0,0.371536]
[1754989816210,0.71637337,118710.0,118700.0,0.371536]
[1754989817208,0.71737337,118710.0,118700.0,0.371536]
[1754989817710,0.71737337,118710.0,118700.0,0.323356]
[1754989817897,0.71737337,118710.0,118700.0,0.371536]
[1754989819107,0.31248549,118710.0,118700.0,0.371536]
[1754989820604,0.45218549,118710.0,118700.0,0.371536]
[1754989824613,0.75587086,118710.0,118700.0,0.67522137]
[1754989827716,0.75587086,118710.0,118700.0,0.371536]
[1754989827912,0.45218549,118710.0,118700.0,0.67522137]
[1754989828114,0.75587086,118710.0,118700.0,0.67522137]
[1754989828308,0.75587086,118710.0,118700.0,0.04782]
[1754989828309,1.50626086,118710.0,118700.0,0.04782]
[1754989828517,0.084247,118700.0,118690.0,1.4083487]
[1754989828816,0.47870237,118700.0,118690.0,0.99801407]
[1754989829017,0.47870237,118700.0,118690.0,0.67395407]
[1754989829917,0.78238774,118700.0,118690.0,0.2017613]
[1754989830106,0.47870237,118700.0,118690.0,0.50544667]
[1754989830309,0.91102474,118700.0,118690.0,0.2017613]
[1754989830508,0.91102474,118700.0,118690.0,0.50544667]
[1754989830712,1.05072474,118700.0,118690.0,0.50544667]
[1754989831012,0.74703937,118700.0,118690.0,0.50544667]
[1754989831517,0.444354,118700.0,118690.0,0.50544667]
[1754989831708,0.74803937,118700.0,118690.0,0.50544667]
[1754989833222,0.74803937,118700.0,118690.0,0.50544667]
[1754989833518,0.74803937,118700.0,118690.0,0.2017613]
[1754989833716,0.74803937,118700.0,118690.0,0.50544667]
[1754989834019,0.74903937,118700.0,118690.0,0.50544667]
[1754989835521,0.74903937,118700.0,118690.0,0.2017613]
[1754989835717,0.74903937,118700.0,118690.0,0.50544667]
[1754989836221,0.74903937,118700.0,118690.0,0.2017613]
[1754989836419,0.445354,118700.0,118690.0,0.50544667]
[1754989836715,0.74903937,118700.0,118690.0,0.2017613]
[1754989837019,0.74903937,118700.0,118690.0,0.50544667]
[1754989838922,0.445354,118700.0,118690.0,0.50544667]
[1754989839121,0.74903937,118700.0,118690.0,0.50544667]
[1754989840720,0.445354,118700.0,118690.0,0.50544667]
[1754989841022,0.74903937,118700.0,118690.0,0.50544667]
[1754989841527,0.74903937,118700.0,118690.0,0.2017613]
[1754989841717,0.74903937,118700.0,118690.0,0.50544667]
[1754989841913,1.05272474,118700.0,118690.0,0.50544667]
[1754989842327,0.445354,118700.0,118690.0,0.50544667]
[1754989842625,0.74903937,118700.0,118690.0,0.50544667]
[1754989843425,0.74903937,118700.0,118690.0,0.2017613]
[1754989844230,0.74903937,118700.0,118690.0,0.50544667]
[1754989845726,0.72954937,118700.0,118690.0,0.50544667]
[1754989846122,0.74903937,118700.0,118690.0,0.50544667]
[1754989847028,0.74903937,118700.0,118690.0,0.2017613]
[1754989847230,0.74903937,118700.0,118690.0,0.50544667]
[1754989847826,0.445354,118700.0,118690.0,0.2017613]
[1754989848027,0.74903937,118700.0,118690.0,0.50544667]
[1754989848215,0.74903937,118700.0,118690.0,0.2017613]
[1754989848421,0.74903937,118700.0,118690.0,0.50544667]
[1754989848623,0.74903937,118700.0,118690.0,0.2017613]
[1754989848825,0.74903937,118700.0,118690.0,0.50544667]
[1754989852125,0.74903937,118700.0,118690.0,0.2013113]
[1754989852429,0.74903937,118700.0,118690.0,0.50499667]
[1754989853529,0.75403937,118700.0,118690.0,0.50599667]
[1754989853933,0.75403937,118700.0,118690.0,0.2023113]
[1754989854231,1.05772474,118700.0,118690.0,0.2023113]
[1754989854425,0.450354,118700.0,118690.0,0.50599667]
[1754989854631,1.05772474,118700.0,118690.0,0.50599667]
[1754989856333,1.05772474,118700.0,118690.0,0.1561141]
[1754989856536,1.05772474,118700.0,118690.0,0.07186]
[1754989856827,1.05772474,118700.0,118690.0,0.08593]
[1754989857136,1.41852474,118700.0,118690.0,0.08593]
[1754989857821,0.811154,118700.0,118690.0,0.08593]
[1754989858027,1.41852474,118700.0,118690.0,0.08593]
[1754989858434,0.811154,118700.0,118690.0,0.08593]
[1754989858633,1.41852474,118700.0,118690.0,0.08593]
[1754989859033,1.41852474,118700.0,118690.0,0.1701841]
[1754989859736,1.41852474,118700.0,118690.0,0.0852541]
[1754989860127,1.41852474,118700.0,118690.0,0.02597]
[1754989860328,1.41852474,118700.0,118690.0,0.1102241]
[1754989860530,1.41852474,118700.0,118690.0,0.1816241]
[1754989860834,1.41852474,118700.0,118690.0,0.2039341]
[1754989861535,1.41852474,118700.0,118690.0,0.1354241]
[1754989861937,1.41852474,118700.0,118690.0,0.001]
[1754989862640,0.811154,118700.0,118690.0,0.02597]
[1754989862936,1.41852474,118700.0,118690.0,0.02597]
[1754989863139,1.41852474,118700.0,118690.0,0.001]
[1754989863932,1.41852474,118700.0,118690.0,0.02597]
[1754989864128,1.41852474,118700.0,118690.0,0.001]
[1754989867634,1.72221011,118700.0,118690.0,0.001]
[1754989868136,1.89070611,118700.0,118690.0,0.001]
[1754989869641,1.72221011,118700.0,118690.0,0.001]
[1754989870030,1.41852474,118700.0,118690.0,0.001]
[1754989870645,1.43755219,118700.0,118690.0,0.001]
[1754989872339,1.74123756,118700.0,118690.0,0.001]
[1754989872745,1.74111335,118700.0,118690.0,0.001]
[1754989873445,0.2239613,118680.0,118670.0,0.02497]
[1754989873645,2.05206204,118680.0,118670.0,0.1806384]
[1754989873844,1.69126204,118680.0,118670.0,0.09637]
[1754989874045,1.69126204,118680.0,118670.0,0.1806384]
[1754989874245,1.69126204,118680.0,118670.0,0.09637]
[1754989874448,2.05206204,118680.0,118670.0,0.09637]
[1754989874637,2.05306204,118680.0,118670.0,0.09637]
[1754989874837,2.05306204,118680.0,118670.0,0.0345]
[1754989875037,0.0842683,118670.0,118660.0,0.6598198]
[1754989875249,0.61750367,118670.0,118660.0,0.2872261]
[1754989876042,0.61750367,118670.0,118660.0,0.202953]
[1754989876239,0.0842825,118650.0,118640.0,0.470059]
[1754989876443,1.36814787,118650.0,118640.0,0.287257]
[1754989876643,1.38763787,118650.0,118640.0,0.59094237]
[1754989876849,1.36814787,118650.0,118640.0,0.287257]
[1754989877147,1.36814787,118650.0,118640.0,0.59094237]
[1754989877338,1.36814787,118650.0,118640.0,0.95374237]
[1754989877543,1.43510333,118650.0,118640.0,0.95574237]
[1754989877846,1.43510333,118650.0,118640.0,0.652057]
[1754989878037,1.43510333,118650.0,118640.0,0.95574237]
[1754989878446,0.27701546,118650.0,118640.0,1.25942774]
[1754989878651,0.20665546,118650.0,118640.0,1.05730657]
[1754989878843,0.20665546,118650.0,118640.0,1.46255614]
[1754989879053,0.20665546,118650.0,118640.0,1.05730657]
[1754989879844,0.29093796,118650.0,118640.0,1.05730657]
[1754989880050,0.29093796,118650.0,118640.0,0.652057]
[1754989880251,0.41957496,118650.0,118640.0,1.05730657]
[1754989880746,0.45194496,118650.0,118640.0,0.652057]
[1754989880950,0.49105496,118650.0,118640.0,1.05730657]
[1754989881949,0.51054496,118650.0,118640.0,0.652057]
[1754989882145,1.28138496,118650.0,118640.0,0.652057]
[1754989882345,1.26189496,118650.0,118640.0,0.291257]
[1754989884153,1.26189496,118650.0,118640.0,0.652057]
[1754989884555,1.66714453,118650.0,118640.0,0.652057]
[1754989884854,1.28138496,118650.0,118640.0,0.652057]
[1754989885049,1.26189496,118650.0,118640.0,0.652057]
[1754989886244,1.26189496,118650.0,118640.0,1.05730657]
[1754989886953,1.26189496,118650.0,118640.0,0.652057]
[1754989888253,1.26401496,118650.0,118640.0,0.652057]
[1754989889056,1.26401496,118650.0,118640.0,1.05730657]
[1754989889755,0.19559246,118650.0,118640.0,1.83014657]
[1754989891359,1.1136943,118670.0,118660.0,0.0842753]
[1754989891554,0.3084443,118670.0,118660.0,0.60888487]
[1754989891760,0.17227,118670.0,118660.0,0.96968487]
[1754989892261,0.2565382,118670.0,118660.0,0.96968487]
[1754989893166,0.17227,118670.0,118660.0,0.96968487]
[1754989893559,0.03237,118670.0,118660.0,0.96968487]
[1754989893761,0.0842682,118670.0,118660.0,1.74276487]
[1754989893962,0.4774317,118680.0,118660.0,1.91131077]
[1754989894265,0.6459646,118680.0,118670.0,0.56126777]
[1754989894472,0.6850746,118680.0,118670.0,0.2036282]
[1754989894665,0.75249623,118680.0,118670.0,0.2036282]
[1754989895363,0.75349623,118680.0,118670.0,0.2036282]
[1754989895563,0.52133323,118680.0,118670.0,0.2036282]
[1754989896066,0.9470728,118680.0,118670.0,0.2036282]
[1754989896267,0.54182323,118680.0,118670.0,0.2036282]
[1754989896968,0.9470728,118680.0,118670.0,0.2036282]
[1754989897369,0.9480728,118680.0,118670.0,0.2046282]
[1754989898668,0.54282323,118680.0,118670.0,0.2046282]
[1754989898865,0.9480728,118680.0,118670.0,0.2046282]
[1754989899062,0.54282323,118680.0,118670.0,0.2046282]
[1754989899263,0.9480728,118680.0,118670.0,0.2046282]
[1754989899770,0.9480728,118680.0,118670.0,0.1725382]
[1754989899970,0.9480728,118680.0,118670.0,0.2046282]
[1754989900470,0.9480728,118680.0,118670.0,0.1101682]
[1754989900969,0.9480728,118680.0,118670.0,0.0852682]
[1754989901170,0.54282323,118680.0,118670.0,0.0852682]
[1754989901670,0.9480728,118680.0,118670.0,0.0852682]
[1754989902167,0.9480728,118680.0,118670.0,0.1101682]
[1754989902368,0.96711767,118680.0,118670.0,0.1101682]
[1754989903771,0.7017681,118680.0,118670.0,0.1101682]
[1754989903970,0.7017681,118680.0,118670.0,0.1091682]
[1754989903971,1.10501767,118680.0,118670.0,0.1091682]
[1754989904165,1.10901767,118680.0,118670.0,0.1101682]
[1754989906076,0.7037681,118680.0,118670.0,0.1101682]
[1754989906379,1.10901767,118680.0,118670.0,0.1101682]
[1754989908069,0.7037681,118680.0,118670.0,0.1101682]
[1754989908268,1.10901767,118680.0,118670.0,0.1101682]
[1754989908983,1.10901767,118680.0,118670.0,0.001]
[1754989910079,1.10901767,118680.0,118670.0,0.1088082]
[1754989910878,1.10901767,118680.0,118670.0,0.02454]
[1754989912181,1.10901767,118680.0,118670.0,0.1088081]
[1754989912682,0.7037681,118680.0,118670.0,0.1088081]
[1754989912880,1.10901767,118680.0,118670.0,0.1088081]
[1754989914083,1.10901767,118680.0,118670.0,0.1186681]
[1754989914270,1.10901767,118680.0,118670.0,0.1831381]
[1754989914470,0.7037681,118680.0,118670.0,0.2063681]
[1754989914678,1.10901767,118680.0,118670.0,0.2063681]
[1754989917779,1.10901767,118680.0,118670.0,0.1714481]
[1754989918082,1.46981767,118680.0,118670.0,0.001]
[1754989918885,1.87506724,118680.0,118670.0,0.001]
[1754989920485,1.46981767,118680.0,118670.0,0.001]
[1754989923384,1.0645681,118680.0,118670.0,0.001]
[1754989923584,1.87506724,118680.0,118670.0,0.001]
[1754989924480,1.46981767,118680.0,118670.0,0.001]
[1754989927586,1.87506724,118680.0,118670.0,0.001]
[1754989927986,1.46981767,118680.0,118670.0,0.001]
[1754989929089,1.87506724,118680.0,118670.0,0.001]
[1754989930686,1.67243396,118680.0,118670.0,0.001]
[1754989931497,1.67243396,118680.0,118670.0,0.02454]
[1754989932698,1.67243396,118680.0,118670.0,0.0344]
[1754989932901,1.67243396,118680.0,118670.0,0.06395]
[1754989933593,1.67243396,118680.0,118670.0,0.02454]
[1754989939607,1.97636689,118680.0,118670.0,0.001]
[1754989940006,1.0645681,118680.0,118670.0,0.001]
[1754989940304,1.97636689,118680.0,118670.0,0.001]
[1754989942112,0.0842753,118660.0,118650.0,0.0247]
[1754989942313,1.57149371,118660.0,118650.0,0.09932]
[1754989942709,1.93229371,118660.0,118650.0,0.06473]
[1754989943014,1.93229371,118660.0,118650.0,0.09932]
[1754989943310,1.93229371,118660.0,118650.0,0.10032]
[1754989943510,1.32442785,118660.0,118650.0,0.10032]
[1754989944010,1.93329371,118660.0,118650.0,0.12287]
[1754989944712,2.07319371,118660.0,118650.0,0.12287]
[1754989945203,2.20183071,118660.0,118650.0,1.12287]
[1754989945808,1.59396485,118660.0,118650.0,1.12287]
[1754989946011,2.20183071,118660.0,118650.0,1.05239]
[1754989947109,1.59396485,118660.0,118650.0,1.05239]
[1754989947311,2.20183071,118660.0,118650.0,1.05239]
[1754989948303,2.20183071,118660.0,118650.0,1.10132]
[1754989949109,1.59396485,118660.0,118650.0,1.10132]
[1754989949510,2.20183071,118660.0,118650.0,1.10132]
[1754989950410,2.18295816,118660.0,118650.0,1.10132]
[1754989951104,1.5750923,118660.0,118650.0,1.10132]
[1754989951405,2.18295816,118660.0,118650.0,1.10132]
[1754989952911,1.5750923,118660.0,118650.0,1.10132]
[1754989953111,2.18295816,118660.0,118650.0,1.10132]
[1754989957917,1.5750923,118660.0,118650.0,1.10132]
[1754989958217,2.18295816,118660.0,118650.0,1.10132]
[1754989958919,1.5750923,118660.0,118650.0,1.10132]
[1754989959113,2.18295816,118660.0,118650.0,1.10132]
[1754989961419,1.5750923,118660.0,118650.0,1.10132]
[1754989961720,2.18295816,118660.0,118650.0,1.10132]
[1754989961914,2.18295816,118660.0,118650.0,1.002]
[1754989961915,2.16446816,118660.0,118650.0,1.002]
[1754989962114,2.18295816,118660.0,118650.0,1.0267]
[1754989962516,2.18295816,118660.0,118650.0,1.04104]
[1754989964319,2.18295816,118660.0,118650.0,1.0267]
[1754989964616,2.48689109,118660.0,118650.0,1.002]
[1754989964813,2.18295816,118660.0,118650.0,1.002]
[1754989965014,2.18295816,118660.0,118650.0,1.0267]
[1754989965221,2.48689109,118660.0,118650.0,1.002]
[1754989966423,2.48689109,118660.0,118650.0,1.001]
[1754989966622,2.48589109,118660.0,118650.0,1.0]
[1754989966821,2.48789109,118660.0,118650.0,1.001]
[1754989967620,2.48789109,118660.0,118650.0,1.0257]
[1754989967821,2.48789109,118660.0,118650.0,1.001]
[1754989968422,2.50672857,118660.0,118650.0,1.0257]
[1754989968920,2.57561782,118660.0,118650.0,1.0257]
[1754989972929,2.57561782,118660.0,118650.0,1.04039]
[1754989973124,1.66381903,118660.0,118650.0,1.04039]
[1754989973328,2.57561782,118660.0,118650.0,1.04039]
[1754989973529,2.57561782,118660.0,118650.0,1.07251]
[1754989980833,2.57561782,118660.0,118650.0,1.07255657]
[1754989981734,2.93641782,118660.0,118650.0,1.07255657]
[1754989982731,2.93644954,118660.0,118650.0,1.07255657]
[1754989985127,1.1667915,118660.0,118650.0,1.07255657]
[1754989985332,2.54525736,118660.0,118650.0,1.07255657]
[1754989986234,2.54479397,118660.0,118650.0,1.07255657]
[1754989986837,2.54406397,118660.0,118650.0,1.07255657]
[1754989988439,1.93619811,118660.0,118650.0,1.07255657]
[1754989988638,1.03795104,118660.0,118650.0,1.4607719]
[1754989988844,1.44823104,118660.0,118650.0,1.4607719]
[1754989989044,1.75216397,118660.0,118650.0,1.4607719]
[1754989990642,1.78543397,118660.0,118650.0,1.4607719]
[1754989991532,0.37321811,118660.0,118650.0,1.4607719]
[1754989991843,0.67715104,118660.0,118650.0,1.4607719]
[1754989992344,0.37321811,118660.0,118650.0,1.4607719]
[1754989992840,0.28894281,118660.0,118650.0,1.56204315]
[1754989993147,0.0842705,118670.0,118650.0,2.25995524]
[1754989993335,0.0842705,118670.0,118660.0,1.69924948]
[1754989993533,0.0842705,118670.0,118660.0,1.73668948]
[1754989994546,0.0862705,118670.0,118660.0,1.73668948]
[1754989995046,0.0882705,118670.0,118660.0,1.73768948]
[1754989996549,0.2169075,118670.0,118660.0,1.73768948]
[1754989996753,0.2169075,118670.0,118660.0,1.3324853]